fUST/lending_fUST_20250523
["ID","MTS","AMOUNT","RATE_DAILY","PERIOD"]
[362070729,1747971046090,-430.0,0.00019336,2]
[362070731,1747971046099,-1580.637922,0.00019348,2]
[362070733,1747971046110,-1580.637922,0.00019348,2]
[362070735,1747971046119,-3269.39023198,0.00019383,2]
[362070737,1747971046129,-1000.0,0.00019392,2]
[362070739,1747971046140,-160.0,0.00019417,2]
[362070742,1747971046150,-12647.66147447,0.00019417,2]
[362070744,1747971046165,-160.0,0.00019417,2]
[362070746,1747971046175,-160.0,0.00019417,2]
[362070748,1747971046184,-894.64583333,0.00019417,2]
[362070750,1747971046194,-422.85710789,0.00019417,2]
[362070752,1747971046204,-160.0,0.00019417,2]
[362070754,1747971046214,-212.48480548,0.00019417,2]
[362070756,1747971046224,-160.0,0.00019417,2]
[362070758,1747971046235,-160.0,0.00019417,2]
[362070760,1747971046245,-160.0,0.00019417,2]
[362070762,1747971046255,-160.0,0.00019418,2]
[362070764,1747971046265,-151.0,0.00019442,2]
[362070767,1747971046279,-151.0,0.00019442,2]
[362070769,1747971046289,-241.682435,0.00019442,2]
[362070771,1747971046300,-241.682435,0.00019442,2]
[362070774,1747971046310,-151.0,0.00019451,2]
[362070776,1747971046320,-151.0,0.00019451,2]
[362070778,1747971046330,-290.352962,0.00019451,2]
[362070780,1747971046340,-151.0,0.00019451,2]
[362070782,1747971046350,-430.0,0.00019452,2]
[362070784,1747971046360,-731.29,0.00019452,2]
[362070785,1747971046370,-442.01,0.00019452,2]
[362070787,1747971046380,-815.64,0.00019452,2]
[362070789,1747971046390,-430.0,0.00019452,2]
[362070791,1747971046400,-645.3,0.00019452,2]
[362070793,1747971046409,-152.522554,0.00019461,2]
[362070794,1747971046419,-152.344886,0.00019461,2]
[362070795,1747971046429,-151.0,0.00019461,2]
[362070796,1747971046440,-151.0,0.00019461,2]
[362070797,1747971046450,-151.0,0.00019461,2]
[362070798,1747971046460,-151.0,0.00019461,2]
[362070800,1747971046472,-151.0,0.00019461,2]
[362070801,1747971046483,-152.177729,0.00019461,2]
[362070802,1747971046493,-521.597327,0.00019461,2]
[362070803,1747971046503,-521.597327,0.00019461,2]
[362070804,1747971046513,-430.0,0.00019508,2]
[362070805,1747971046523,-490.37,0.0001961,2]
[362070806,1747971046532,-430.0,0.0001961,2]
[362070807,1747971046542,-556.23,0.0001961,2]
[362070808,1747971046552,-571.18,0.0001961,2]
[362070809,1747971046562,-502.00668668,0.0001961,2]
[362070810,1747971046572,-559.60182779,0.0001961,2]
[362070811,1747971046581,-1189.44558785,0.00019615,2]
[362070812,1747971046591,-3269.39023198,0.00019659,2]
[362070813,1747971046601,-500.73938487,0.00019721,2]
[362070814,1747971046611,-430.0,0.00019726,2]
[362070815,1747971046621,-731.29,0.00019726,2]
[362070816,1747971046631,-442.01,0.00019726,2]
[362070817,1747971046640,-815.64,0.00019726,2]
[362070818,1747971046651,-430.0,0.00019726,2]
[362070819,1747971046661,-645.3,0.00019726,2]
[362070820,1747971046671,-503.41552726,0.00019751,2]
[362070821,1747971046681,-430.0,0.00019782,2]
[362070823,1747971046691,-151.0,0.00019786,2]
[362070824,1747971046701,-490.37,0.00019884,2]
[362070825,1747971046710,-156.82532804,0.00019884,2]
[362070826,1747971046721,-556.23,0.00019884,2]
[362070827,1747971046731,-571.18,0.00019884,2]
[362070828,1747971046740,-3269.39023198,0.00019934,2]
[362070829,1747971046750,-1500.26651183,0.0001994,2]
[362070830,1747971046759,-104232.67773285,0.0002,2]
[362070831,1747971046769,-151.0,0.0002,2]
[362070832,1747971046779,-151.0,0.0002,2]
[362070833,1747971046789,-589.0,0.0002,2]
[362070834,1747971046800,-151.0,0.0002,2]
[362070835,1747971046809,-151.0,0.0002,2]
[362070836,1747971046820,-156.171419,0.0002,2]
[362070837,1747971046829,-156.171419,0.0002,2]
[362070838,1747971046838,-208.356235,0.0002,2]
[362070839,1747971046848,-1011.934395,0.0002,2]
[362070840,1747971046859,-158.04,0.0002,2]
[362070841,1747971046869,-151.0,0.0002,2]
[362070842,1747971046878,-151.0,0.0002,2]
[362070843,1747971046888,-151.0,0.0002,2]
[362070844,1747971046900,-151.0,0.0002,2]
[362070845,1747971046909,-177.412349,0.0002,2]
[362070846,1747971046919,-295.002582,0.0002,2]
[362070847,1747971046928,-379.212767,0.0002,2]
[362070848,1747971046937,-379.212767,0.0002,2]
[362070849,1747971046949,-151.0,0.0002,2]
[362070850,1747971046959,-2000.0,0.0002,2]
[362070851,1747971046970,-5000.0,0.0002,2]
[362070852,1747971046979,-151.0,0.0002,2]
[362070853,1747971046989,-151.0,0.0002,2]
[362070854,1747971046999,-156.981408,0.0002,2]
[362070855,1747971047010,-887.0,0.0002,2]
[362070856,1747971047020,-151.0,0.0002,2]
[362070857,1747971047030,-151.0,0.0002,2]
[362070858,1747971047040,-151.0,0.0002,2]
[362070859,1747971047052,-151.504718,0.0002,2]
[362070860,1747971047062,-160.0,0.0002,3]
[362070861,1747971047072,-521.597327,0.0002,2]
[362070862,1747971047082,-521.597327,0.0002,2]
[362070863,1747971047092,-151.0,0.0002,2]
[362070864,1747971047102,-241.682435,0.0002,2]
[362070865,1747971047112,-241.682435,0.0002,2]
[362070866,1747971047122,-11246.51157768,0.0002,2]
[362070867,1747971047132,-45211.19922677,0.0002,2]
[362070868,1747971047142,-221.24639,0.0002,2]
[362070869,1747971047154,-430.0,0.0002,2]
[362070870,1747971047167,-731.29,0.0002,2]
[362070871,1747971047177,-442.01,0.0002,2]
[362070872,1747971047187,-815.64,0.0002,2]
[362070873,1747971047200,-430.0,0.0002,2]
[362070874,1747971047210,-645.3,0.0002,2]
[362070875,1747971047220,-155.0,0.0002,2]
[362070876,1747971047230,-1580.637922,0.0002,2]
[362070877,1747971047240,-1580.637922,0.0002,2]
[362070878,1747971047251,-427.00307512,0.00020056,2]
[362070879,1747971047260,-1000.0,0.00020068,2]
[362070880,1747971047270,-500.0,0.00020079,2]
[362070881,1747971047280,-490.37,0.00020158,2]
[362070882,1747971047290,-556.23,0.00020158,2]
[362070883,1747971047300,-571.18,0.00020158,2]
[362070884,1747971047310,-329.213179,0.00020187,2]
[362070885,1747971047320,-823.0,0.00020194,2]
[362070886,1747971047330,-3269.39023198,0.0002021,2]
[362070887,1747971047340,-205.9021066,0.00020257,2]
[362070888,1747971047349,-207.4,0.00020257,2]
[362070889,1747971047359,-151.0,0.00020257,2]
[362070890,1747971047370,-430.0,0.00020273,2]
[362070891,1747971047379,-731.29,0.00020273,2]
[362070892,1747971047389,-442.01,0.00020273,2]
[362070893,1747971047399,-815.64,0.00020273,2]
[362070894,1747971047408,-430.0,0.00020273,2]
[362070895,1747971047419,-645.3,0.00020273,2]
[362070896,1747971047428,-490.37,0.00020432,2]
[362070897,1747971047438,-556.23,0.00020432,2]
[362070898,1747971047450,-571.18,0.00020432,2]
[362070899,1747971047459,-370.24831953,0.00020436,2]
[362070900,1747971047469,-3269.39023198,0.00020486,3]
[362070901,1747971047479,-3000.0,0.000205,2]
[362070902,1747971047489,-150.15,0.000205,2]
[362070903,1747971047655,-3000.0,0.0002051,2]
[362070904,1747971047665,-3000.0,0.0002052,2]
[362070905,1747971047675,-3000.0,0.0002053,2]
[362070906,1747971047684,-3000.0,0.0002054,2]
[362070907,1747971047695,-430.0,0.00020547,2]
[362070908,1747971047705,-731.29,0.00020547,2]
[362070909,1747971047716,-442.01,0.00020547,2]
[362070910,1747971047726,-815.64,0.00020547,2]
[362070911,1747971047736,-430.0,0.00020547,2]
[362070912,1747971047746,-645.3,0.00020547,2]
[362070913,1747971047756,-155.0,0.00020548,2]
[362070914,1747971047765,-3969.196924,0.0002055,2]
[362070915,1747971047775,-490.37,0.00020706,2]
[362070916,1747971047785,-556.23,0.00020706,2]
[362070917,1747971047796,-571.18,0.00020706,2]
[362070918,1747971047805,-3269.39023198,0.00020762,3]
[362070919,1747971047815,-1000.0,0.0002081,5]
[362070920,1747971047825,-430.0,0.00020821,2]
[362070921,1747971047835,-731.29,0.00020821,2]
[362070922,1747971047845,-442.01,0.00020821,2]
[362070923,1747971047854,-815.64,0.00020821,2]
[362070924,1747971047864,-430.0,0.00020821,2]
[362070925,1747971047873,-645.3,0.00020821,2]
[362070926,1747971047883,-1580.637922,0.00020876,2]
[362070927,1747971047893,-1580.637922,0.00020876,2]
[362070928,1747971047903,-2234.0,0.00020876,2]
[362070929,1747971047912,-707.0,0.00020876,2]
[362070930,1747971047922,-482.089,0.00020876,2]
[362070931,1747971047931,-404.0,0.00020876,2]
[362070932,1747971047941,-490.37,0.0002098,2]
[362070933,1747971047951,-556.23,0.0002098,2]
[362070934,1747971047961,-571.18,0.0002098,2]
[362070935,1747971047970,-5000.0,0.00021,2]
[362070936,1747971047980,-151.0,0.00021,2]
[362070937,1747971047989,-241.682435,0.00021,2]
[362070938,1747971047998,-241.682435,0.00021,2]
[362070939,1747971048007,-4461.12821252,0.00021,3]
[362070940,1747971048018,-3269.39023198,0.00021038,4]
[362070941,1747971048028,-500.0,0.00021083,2]
[362070942,1747971048038,-430.0,0.00021095,2]
[362070943,1747971048048,-731.29,0.00021095,2]
[362070944,1747971048058,-442.01,0.00021095,2]
[362070945,1747971048067,-815.64,0.00021095,2]
[362070946,1747971048077,-430.0,0.00021095,2]
[362070947,1747971048087,-645.3,0.00021095,2]
[362070948,1747971048097,-155.0,0.00021096,2]
[362070949,1747971048107,-1000.0,0.00021164,2]
[362070950,1747971048117,-727.83,0.00021164,2]
[362070951,1747971048127,-379.212767,0.00021164,2]
[362070952,1747971048137,-379.212767,0.00021164,2]
[362070953,1747971048147,-151.866835,0.00021164,2]
[362070954,1747971048161,-151.0,0.00021164,2]
[362070955,1747971048170,-2649.35480524,0.00021176,2]
[362070956,1747971048180,-500.0,0.0002119,2]
[362070957,1747971048189,-500.0,0.0002119,2]
[362070958,1747971048201,-500.0,0.0002119,2]
[362070959,1747971048210,-500.0,0.0002119,2]
[362070960,1747971048220,-490.37,0.00021254,2]
[362070961,1747971048229,-556.23,0.00021254,2]
[362070962,1747971048240,-571.18,0.00021254,2]
[362070963,1747971048251,-151.0,0.00021279,2]
[362070964,1747971048260,-257.731423,0.00021279,2]
[362070965,1747971048270,-151.0,0.00021279,2]
[362070966,1747971048279,-275.831647,0.00021279,2]
[362070967,1747971048289,-3000.0,0.000213,2]
[362070968,1747971048299,-208.356235,0.000213,2]
[362070969,1747971048309,-208.356235,0.000213,2]
[362070970,1747971048319,-151.0,0.000213,2]
[362070971,1747971048328,-151.0,0.000213,2]
[362070972,1747971048338,-151.0,0.000213,2]
[362070973,1747971048348,-3000.0,0.0002131,2]
[362070974,1747971048358,-3269.39023198,0.00021314,5]
[362070975,1747971048368,-2980.50383874,0.0002132,2]
[362070976,1747971048692,-430.0,0.00016438,2]
[362070977,1747971048702,-437.03725396,0.00016438,2]
[362070978,1747971048713,-430.0,0.00016596,2]
[362070979,1747971048723,-430.0,0.00016712,2]
[362070980,1747971048732,-5000.0,0.00016816,2]
[362070981,1747971048742,-600.0,0.00020194,2]
[362070982,1747971048752,-19.49616126,0.0002132,2]
[362070983,1747971048762,-3000.0,0.0002133,2]
[362070984,1747971048772,-151.420759,0.0002133,2]
[362070985,1747971048782,-151.0,0.0002133,2]
[362070986,1747971048792,-151.0,0.0002133,2]
[362070987,1747971048802,-151.0,0.0002133,2]
[362070988,1747971048812,-151.0,0.0002133,2]
[362070989,1747971048822,-151.0,0.0002133,2]
[362070990,1747971048832,-156.171419,0.0002133,2]
[362070991,1747971048842,-156.171419,0.0002133,2]
[362070992,1747971048852,-1011.934395,0.0002133,2]
[362070993,1747971048862,-521.597327,0.0002133,2]
[362070994,1747971048872,-521.597327,0.0002133,2]
[362070995,1747971048881,-3000.0,0.0002134,2]
[362070996,1747971048891,-151.0,0.0002134,2]
[362070997,1747971048901,-3000.0,0.0002135,2]
[362070998,1747971048911,-3000.0,0.0002136,2]
[362070999,1747971048921,-430.0,0.00021369,2]
[362071000,1747971048931,-731.29,0.00021369,2]
[362071001,1747971048941,-442.01,0.00021369,2]
[362071002,1747971048951,-815.64,0.00021369,2]
[362071003,1747971048961,-430.0,0.00021369,2]
[362071004,1747971048971,-645.3,0.00021369,2]
[362071005,1747971048981,-3000.0,0.0002137,2]
[362071006,1747971048990,-3000.0,0.0002138,2]
[362071007,1747971049001,-3000.0,0.0002139,2]
[362071008,1747971049010,-3000.0,0.000214,2]
[362071009,1747971049020,-3000.0,0.0002141,2]
[362071010,1747971049031,-3000.0,0.0002142,2]
[362071011,1747971049040,-151.0,0.00021428,2]
[362071012,1747971049050,-150.234,0.00021429,2]
[362071013,1747971049073,-195.776,0.00021429,2]
[362071014,1747971049084,-239.809,0.00021429,2]
[362071015,1747971049094,-3000.0,0.0002143,2]
[362071016,1747971049105,-1580.637922,0.0002143,2]
[362071017,1747971049115,-1580.637922,0.0002143,2]
[362071018,1747971049125,-3000.0,0.0002144,2]
[362071019,1747971049135,-3000.0,0.0002145,2]
[362071020,1747971049145,-3000.0,0.0002146,2]
[362071021,1747971049156,-3000.0,0.0002147,2]
[362071022,1747971049168,-151.0,0.0002147,2]
[362071023,1747971049179,-241.682435,0.0002147,2]
[362071024,1747971049189,-241.682435,0.0002147,2]
[362071025,1747971049200,-3000.0,0.0002148,2]
[362071026,1747971049210,-2293.76597107,0.0002149,2]
[362071027,1747971049265,-430.0,0.00016438,2]
[362071028,1747971049275,-400.6395,0.00016712,2]
[362071030,1747971224444,9000.0,0.00015,2]
[362071031,1747971235371,5000.0,0.00015,2]
[362071032,1747971265183,5360.37,0.00015,2]
[362071034,1747971400326,328.498114,0.00013699,2]
[362071035,1747971605815,-312.14827741,0.00015437,2]
[362071036,1747971610096,-207.1967708,0.00015437,2]
[362071037,1747971611642,-249.37903603,0.00015437,2]
[362071038,1747971613795,-290.2095233,0.00015437,2]
[362071039,1747971617147,-298.6558789,0.00015437,2]
[362071040,1747971618681,-186.28358166,0.00015437,2]
[362071041,1747971621244,-154.538006,0.00015437,2]
[362071042,1747971623384,-170.63,0.00015437,2]
[362071043,1747971628045,-250.0,0.00015437,2]
[362071044,1747971630777,-165.4310943,0.00015437,2]
[362071045,1747971637328,-214.65108123,0.00015437,2]
[362071046,1747971640068,-152.0,0.00015437,2]
[362071047,1747971643267,-379.19778965,0.00015437,2]
[362071048,1747971644790,-210.04849205,0.00015437,2]
[362071119,1747972037030,4227.54110473,0.00015,2]
[362071177,1747972232799,-1115.51770175,0.00015025,2]
[362071179,1747972232811,-2121.25695784,0.00015025,2]
[362071181,1747972232823,-5446.92,0.00015025,2]
[362071184,1747972232834,-849.27394424,0.00015025,2]
[362071187,1747972232853,-14743.42095931,0.00015025,2]
[362071189,1747972232866,-623.61043686,0.00015025,2]
[362071191,1747972232875,-266.608285,0.00015086,2]
[362071193,1747972232884,-31.88394719,0.00015195,2]
[362071213,1747972238506,-279.89654601,0.00015195,2]
[362071214,1747972238516,-313.1325041,0.00015385,2]
[362071215,1747972238527,-1200.0,0.00015436,2]
[362071216,1747972238538,-4384.32967867,0.00015437,2]
[362071217,1747972238548,-200.57371472,0.0001601,2]
[362071218,1747972238558,-160.0,0.00016414,2]
[362071219,1747972238568,-300.0,0.00016427,2]
[362071220,1747972238578,-300.0,0.00016427,2]
[362071221,1747972238587,-37448.96513968,0.00016428,2]
[362071222,1747972238597,-329.13,0.00016428,3]
[362071223,1747972238608,-1555.8,0.00016428,3]
[362071224,1747972238619,-777.9,0.00016428,3]
[362071225,1747972238628,-583.44,0.00016428,3]
[362071226,1747972238638,-167.08380229,0.00016436,2]
[362071227,1747972238647,-500.0,0.00016436,2]
[362071228,1747972238657,-500.0,0.00016436,2]
[362071229,1747972238666,-285.84197799,0.00016436,2]
[362071230,1747972238676,-520.16078213,0.00016436,2]
[362071231,1747972238686,-430.16432355,0.00016438,2]
[362071232,1747972238696,-434.73554864,0.00016438,2]
[362071233,1747972238705,-456.96871785,0.00016438,2]
[362071234,1747972238715,-403.40081289,0.00016438,2]
[362071235,1747972238725,-216.43514791,0.00016438,2]
[362071236,1747972238734,-374.2693132,0.00016438,2]
[362071237,1747972238744,-430.0,0.00016438,2]
[362071238,1747972238753,-490.59480436,0.00016438,2]
[362071239,1747972238763,-302.07009907,0.00016438,2]
[362071240,1747972238772,-434.18607446,0.00016438,2]
[362071241,1747972238782,-430.0,0.00016438,2]
[362071242,1747972238792,-430.0,0.00016438,2]
[362071243,1747972238801,-430.0,0.00016438,2]
[362071244,1747972238811,-313.61493662,0.00016438,2]
[362071245,1747972238821,-435.45420519,0.00016438,2]
[362071246,1747972238832,-434.02501559,0.00016438,2]
[362071247,1747972238841,-432.78003452,0.00016438,2]
[362071248,1747972238851,-452.30835389,0.00016438,2]
[362071249,1747972238860,-332.4289685,0.00016438,2]
[362071250,1747972238870,-347.46366732,0.00016438,2]
[362071251,1747972238880,-431.34354376,0.00016438,2]
[362071252,1747972238890,-404.6300205,0.00016438,2]
[362071253,1747972238900,-430.0,0.00016438,2]
[362071254,1747972238909,-430.0,0.00016438,2]
[362071255,1747972238918,-245.55831481,0.00016438,2]
[362071256,1747972238928,-469.07109093,0.00016438,2]
[362071257,1747972238938,-438.59287815,0.00016438,2]
[362071258,1747972238948,-431.79718498,0.00016438,2]
[362071260,1747972238958,-445.35739857,0.00016438,2]
[362071261,1747972238967,-324.01689796,0.00016438,2]
[362071263,1747972238977,-325.56019906,0.00016438,2]
[362071265,1747972238987,-441.82330801,0.00016438,2]
[362071267,1747972238996,-340.0,0.00016438,2]
[362071269,1747972239006,-430.0,0.00016438,2]
[362071271,1747972239016,-430.0,0.00016438,2]
[362071273,1747972239026,-430.0,0.00016438,2]
[362071275,1747972239035,-430.0,0.00016438,2]
[362071277,1747972239045,-430.0,0.00016438,2]
[362071279,1747972239054,-430.0,0.00016438,2]
[362071281,1747972239064,-430.0,0.00016438,2]
[362071283,1747972239074,-430.0,0.00016438,2]
[362071300,1747972239225,-453.94090934,0.00016438,2]
[362071302,1747972239236,-430.0,0.00016438,2]
[362071304,1747972239246,-430.0,0.00016438,2]
[362071306,1747972239256,-472.10452465,0.00016438,2]
[362071308,1747972239265,-311.05179077,0.00016438,2]
[362071310,1747972239275,-430.0,0.00016438,2]
[362071312,1747972239285,-430.0,0.00016438,2]
[362071314,1747972239295,-430.0,0.00016438,2]
[362071317,1747972239306,-456.51529572,0.00016438,2]
[362071319,1747972239316,-445.71592377,0.00016438,2]
[362071321,1747972239325,-430.0,0.00016438,2]
[362071323,1747972239336,-430.0,0.00016438,2]
[362071325,1747972239345,-269.06918673,0.00016438,2]
[362071327,1747972239355,-430.0,0.00016438,2]
[362071329,1747972239364,-430.0,0.00016438,2]
[362071331,1747972239374,-342.41912347,0.00016438,2]
[362071333,1747972239383,-430.0,0.00016438,2]
[362071335,1747972239393,-430.0,0.00016438,2]
[362071337,1747972239402,-453.30075713,0.00016438,2]
[362071339,1747972239412,-430.0,0.00016438,2]
[362071341,1747972239421,-430.0,0.00016438,2]
[362071343,1747972239431,-300.92409891,0.00016438,2]
[362071345,1747972239440,-430.0,0.00016438,2]
[362071347,1747972239450,-442.54151808,0.00016438,2]
[362071349,1747972239459,-430.0,0.00016438,2]
[362071351,1747972239468,-430.0,0.00016438,2]
[362071353,1747972239478,-430.0,0.00016438,2]
[362071355,1747972239487,-439.8107558,0.00016438,2]
[362071357,1747972239497,-300.0,0.00016438,2]
[362071359,1747972239506,-430.0,0.00016438,2]
[362071361,1747972239517,-430.0,0.00016438,2]
[362071363,1747972239530,-430.0,0.00016438,2]
[362071365,1747972239539,-430.0,0.00016438,2]
[362071367,1747972239549,-301.68478041,0.00016438,2]
[362071369,1747972239558,-500.0,0.00016438,2]
[362071371,1747972239569,-438.70368208,0.00016438,2]
[362071373,1747972239578,-430.0,0.00016438,2]
[362071375,1747972239588,-430.0,0.00016438,2]
[362071377,1747972239598,-430.0,0.00016438,2]
[362071379,1747972239608,-430.0,0.00016438,2]
[362071381,1747972239617,-430.0,0.00016438,2]
[362071383,1747972239627,-173.58219566,0.00016438,2]
[362071385,1747972239636,-430.0,0.00016438,2]
[362071386,1747972239646,-430.0,0.00016438,2]
[362071388,1747972239655,-425.0,0.00016438,2]
[362071391,1747972239665,-430.0,0.00016438,2]
[362071393,1747972239674,-430.0,0.00016438,2]
[362071394,1747972239684,-430.0,0.00016438,2]
[362071397,1747972239693,-430.0,0.00016438,2]
[362071399,1747972239703,-348.63535569,0.00016438,2]
[362071400,1747972239712,-430.0,0.00016438,2]
[362071402,1747972239721,-430.0,0.00016438,2]
[362071404,1747972239731,-430.0,0.00016438,2]
[362071406,1747972239740,-430.0,0.00016438,2]
[362071408,1747972239750,-459.65753981,0.00016438,2]
[362071410,1747972239759,-430.0,0.00016438,2]
[362071413,1747972239769,-430.0,0.00016438,2]
[362071415,1747972239779,-430.0,0.00016438,2]
[362071417,1747972239788,-430.0,0.00016438,2]
[362071419,1747972239798,-430.0,0.00016438,2]
[362071421,1747972239808,-430.0,0.00016438,2]
[362071422,1747972239817,-430.0,0.00016438,2]
[362071424,1747972239826,-430.0,0.00016438,2]
[362071426,1747972239836,-430.0,0.00016438,2]
[362071428,1747972239845,-436.0997187,0.00016438,2]
[362071430,1747972239855,-399.88265152,0.00016438,2]
[362071432,1747972239864,-430.0,0.00016438,2]
[362071434,1747972239874,-437.22322138,0.00016438,2]
[362071436,1747972239884,-430.0,0.00016438,2]
[362071438,1747972239894,-430.0,0.00016438,2]
[362071440,1747972239903,-430.0,0.00016438,2]
[362071442,1747972239913,-436.53903306,0.00016438,2]
[362071444,1747972239922,-430.0,0.00016438,2]
[362071446,1747972239931,-430.0,0.00016438,2]
[362071448,1747972239942,-430.0,0.00016438,2]
[362071450,1747972239952,-430.0,0.00016438,2]
[362071452,1747972239961,-436.26350198,0.00016438,2]
[362071455,1747972239971,-468.46180767,0.00016438,2]
[362071457,1747972239981,-430.0,0.00016438,2]
[362071458,1747972239993,-436.94865884,0.00016438,2]
[362071460,1747972240003,-430.0,0.00016438,2]
[362071462,1747972240013,-430.0,0.00016438,2]
[362071464,1747972240024,-430.0,0.00016438,2]
[362071466,1747972240035,-437.06822049,0.00016438,2]
[362071468,1747972240044,-430.0,0.00016438,2]
[362071471,1747972240053,-173.46901184,0.00016438,2]
[362071472,1747972240063,-430.0,0.00016438,2]
[362071475,1747972240072,-430.0,0.00016438,2]
[362071476,1747972240081,-430.0,0.00016438,2]
[362071478,1747972240090,-430.0,0.00016438,2]
[362071480,1747972240100,-430.0,0.00016438,2]
[362071482,1747972240109,-430.0,0.00016438,2]
[362071484,1747972240118,-430.0,0.00016438,2]
[362071486,1747972240128,-430.0,0.00016438,2]
[362071488,1747972240137,-430.0,0.00016438,2]
[362071490,1747972240147,-430.0,0.00016438,2]
[362071492,1747972240157,-430.0,0.00016438,2]
[362071494,1747972240166,-478.67,0.00016438,2]
[362071496,1747972240175,-348.51129988,0.00016438,2]
[362071498,1747972240185,-430.0,0.00016438,2]
[362071500,1747972240194,-443.30218969,0.00016438,2]
[362071502,1747972240206,-430.0,0.00016438,2]
[362071505,1747972240216,-430.0,0.00016438,2]
[362071507,1747972240226,-436.74823618,0.00016438,2]
[362071509,1747972240235,-430.0,0.00016438,2]
[362071510,1747972240245,-430.0,0.00016438,2]
[362071511,1747972240254,-430.0,0.00016438,2]
[362071512,1747972240263,-430.0,0.00016438,2]
[362071513,1747972240273,-440.97854868,0.00016438,2]
[362071514,1747972240284,-430.0,0.00016438,2]
[362071516,1747972240293,-430.0,0.00016438,2]
[362071518,1747972240302,-438.69212648,0.00016438,2]
[362071520,1747972240311,-430.0,0.00016438,2]
[362071522,1747972240321,-430.0,0.00016438,2]
[362071524,1747972240330,-430.0,0.00016438,2]
[362071526,1747972240339,-430.0,0.00016438,2]
[362071528,1747972240349,-510.95,0.00016438,2]
[362071530,1747972240358,-430.0,0.00016438,2]
[362071532,1747972240367,-430.0,0.00016438,2]
[362071534,1747972240376,-465.43150531,0.00016438,2]
[362071536,1747972240386,-430.0,0.00016438,2]
[362071538,1747972240395,-430.0,0.00016438,2]
[362071540,1747972240404,-430.0,0.00016438,2]
[362071542,1747972240413,-430.0,0.00016438,2]
[362071544,1747972240423,-544.01,0.00016438,2]
[362071546,1747972240432,-430.0,0.00016438,2]
[362071548,1747972240441,-442.68339239,0.00016438,2]
[362071550,1747972240450,-430.0,0.00016438,2]
[362071552,1747972240459,-430.0,0.00016438,2]
[362071554,1747972240468,-455.8121892,0.00016438,2]
[362071556,1747972240477,-430.0,0.00016438,2]
[362071558,1747972240487,-430.0,0.00016438,2]
[362071560,1747972240496,-430.0,0.00016438,2]
[362071562,1747972240505,-408.65311017,0.00016438,2]
[362071564,1747972240514,-430.0,0.00016438,2]
[362071566,1747972240524,-443.5571818,0.00016438,2]
[362071568,1747972240537,-430.0,0.00016438,2]
[362071570,1747972240549,-430.0,0.00016438,2]
[362071572,1747972240558,-430.0,0.00016438,2]
[362071574,1747972240567,-442.82451361,0.00016438,2]
[362071576,1747972240578,-430.0,0.00016438,2]
[362071578,1747972240587,-430.0,0.00016438,2]
[362071580,1747972240596,-430.0,0.00016438,2]
[362071582,1747972240607,-430.0,0.00016438,2]
[362071584,1747972240617,-430.0,0.00016438,2]
[362071586,1747972240626,-430.0,0.00016438,2]
[362071588,1747972240635,-430.0,0.00016438,2]
[362071590,1747972240645,-430.0,0.00016438,2]
[362071592,1747972240654,-430.0,0.00016438,2]